Cogmind - Beta 12 @@@ ROGUE MODE // 2023.05.15 @ 21:27:53 Player: Mr Goldstein Result: Self-destructed Performance ------------- Evolutions (3) 1500 Regions Visited (9) 1800 Robots Destroyed (188) 940 Value Destroyed (5950) 5950 Prototype IDs (27) 540 Alien Tech Used (0) 0 Bonus (2861) 2861 TOTAL SCORE: 13591 Bonus ------- High Alert Combat Kills 1387 Follower Combat Kills 232 Entered Garrisons 400 Used RIF Installer 1000 Aligned with FarCom 300 Friendly Fire -458 Cogmind --------- Core Integrity 335/700 Matter 233/300 Energy 29/170 System Corruption 18% Temperature Warm (127) Movement Core (1400) Ox27 Location -7/Garrison Parts ------- > --- POWER (1) -------- Light Antimatter Reactor > --- PROPULSION (5) --- (None) > --- UTILITY (4) ------ High-capacity Storage Unit Improved Force Field > --- WEAPON (3) ------- Gauss Rifle Hardcell Cannon Rocket Launcher > --- INVENTORY (20) --- Improved Deuterium Engine High-capacity Matter Pod (0) Improved Light Armor Plating Relay Coupler [Hunter] (19) Relay Coupler [Behemoth] (14) Flak Gun Flak Gun Hypervelocity Gauss Rifle Hypervelocity Gauss Rifle Hypervelocity Gauss Rifle Hypervelocity Gauss Rifle Railgun Hardcell Cannon Grenade Launcher Micro-nuke Launcher Remote Datajack Field Lobotomy Kit (4) Chainsword Peak State ------------ > --- POWER ------------ Light Antimatter Reactor > --- PROPULSION ------- Armored Huge Wheel > --- UTILITY ---------- High-capacity Storage Unit Improved Light Armor Plating Improved Force Field Relay Coupler [Grunt] > --- WEAPON ----------- Gauss Rifle Railgun Micro-nuke Launcher > --- INVENTORY -------- Improved Deuterium Engine High-capacity Matter Pod High-capacity Matter Pod Improved Light Armor Plating Relay Coupler [Hunter] Relay Coupler [Behemoth] Flak Gun Flak Gun Hypervelocity Gauss Rifle Hypervelocity Gauss Rifle Hypervelocity Gauss Rifle Hypervelocity Gauss Rifle Hardcell Cannon Hardcell Cannon Grenade Launcher Rocket Launcher Remote Datajack Field Lobotomy Kit Chainsword [Rating: 55] Favorites ----------- Power Cooled Deuterium Engine Engine Cooled Deuterium Engine Power Core Light Nuclear Core Reactor Light Antimatter Reactor Propulsion Armored Huge Wheel Wheel Armored Huge Wheel Utility High-capacity Storage Unit Device Hardlight Generator Storage High-capacity Storage Unit Processor Advanced Targeting Computer Hackware Relay Coupler [Hunter] Protection Light Armor Plating Weapon Light Assault Rifle Ballistic Gun Light Assault Rifle Ballistic Cannon Hardcell Cannon Launcher Grenade Launcher Special Weapon Remote Datajack Slashing Weapon Chainsword Special Melee Weapon Datajack Build | -11 -10 -10 -10 -9 -8 -7 -7 -7 -7 ------- Run | Jun Mat Min Exi Min Mat Fac Gar Fac Gar Slots Evolved 6 | . . . . . 4 2 . . . Power . | . . . . . . . . . . Propulsion 3 | . . . . . 2 1 . . . Utility 2 | . . . . . 2 . . . . Weapon 1 | . . . . . . 1 . . . Parts Attached 138 | 6 18 1 . 3 58 4 13 7 28 Power 13 | 1 3 . . 1 5 1 . . 2 Engine 11 | 1 3 . . 1 4 1 . . 1 Core 1 | . . . . . 1 . . . . Reactor 1 | . . . . . . . . . 1 Propulsion 19 | 2 3 . . . 11 1 1 . 1 Treads . | . . . . . . . . . . Leg . | . . . . . . . . . . Wheel 19 | 2 3 . . . 11 1 1 . 1 Hover . | . . . . . . . . . . Flight . | . . . . . . . . . . Utility 30 | 1 2 1 . . 12 1 . 4 9 Device 9 | . 1 . . . 3 1 . 1 3 Storage 2 | 1 1 . . . . . . . . Processor 2 | . . . . . 2 . . . . Hackware 4 | . . . . . . . . 1 3 Protection 13 | . . 1 . . 7 . . 2 3 Artifact . | . . . . . . . . . . Weapon 76 | 2 10 . . 2 30 1 12 3 16 Energy Gun . | . . . . . . . . . . Energy Cannon . | . . . . . . . . . . Ballistic Gun 43 | 2 7 . . 1 20 1 6 1 5 Ballistic Cannon 1 | . . . . . . . . . 1 Launcher 20 | . 2 . . 1 9 . 4 . 4 Special Weapon 5 | . . . . . 1 . . 1 3 Impact Weapon . | . . . . . . . . . . Slashing Weapon 6 | . . . . . . . 2 1 3 Piercing Weapon . | . . . . . . . . . . Special Melee Weapon 1 | . 1 . . . . . . . . Unidentified Prototypes 2 | . . . . . 2 . . . . Parts Lost 30 | . 8 . . 1 9 . . 2 10 Power 6 | . 3 . . 1 1 . . . 1 Propulsion 11 | . 3 . . . 4 . . . 4 Utility 9 | . . . . . 4 . . 1 4 Weapon 4 | . 2 . . . . . . 1 1 Highest Loss Streak 4 | . 2 . . 1 2 . . 2 4 To Critical Strikes . | . . . . . . . . . . Average Slot Usage (%) 84 | . 87 100 100 98 80 83 84 84 78 Engine 9 | . 12 14 14 12 8 7 7 7 5 Wheel 23 | . 27 28 28 28 21 23 23 23 18 Device 6 | . 4 . . . 6 11 15 14 8 Storage 10 | . 14 14 14 14 9 7 7 7 7 Processor 3 | . . . . . 7 7 7 3 . Protection 7 | . . 13 14 14 10 2 . 3 11 Ballistic Gun 20 | . 27 28 28 26 17 22 17 15 14 Slashing Weapon 1 | . . . . . . . 3 6 4 Naked Turns . | . . . . . . . . . . Heaviest Build 85 | 13 50 48 48 50 70 70 70 77 85 Greatest Support 72 | 26 26 26 26 26 56 72 72 72 72 Greatest Overweight (x) 4 | . 4 1 1 1 2 . . 1 2 Average Overweight (x) . | . . 1 1 1 . . . . . Largest Inventory Capacity 20 | 8 20 20 20 20 20 20 20 20 20 Average Capacity 19 | 7 18 20 20 20 20 20 20 20 20 Most Carried 20 | 1 11 14 17 18 20 16 20 20 20 Average Carried 15 | . 6 13 14 17 19 15 18 19 18 Final Capacity 20 | 8 20 20 20 20 20 20 20 20 20 Final Carried 19 | 1 11 14 15 18 16 16 19 18 18 Class Distribution -------------------- 58% | Mutant 32% | Scavenger-Mutant 5% | Bothacker-Mutant 3% | Tank Dominant Class ---------------- Mutant | -10/Materials Scavenger-Mutant | -10/Mines Scavenger-Mutant | -10/Exiles Scavenger-Mutant | -9/Mines Mutant | -8/Materials Tank | -7/Factory Mutant | -7/Garrison Mutant | -7/Factory Mutant | -7/Garrison Resources | -11 -10 -10 -10 -9 -8 -7 -7 -7 -7 ----------- Run | Jun Mat Min Exi Min Mat Fac Gar Fac Gar Matter Collected 4796 | 223 823 . 36 131 1919 . 296 495 873 Remotely 235 | . 235 . . . . . . . . Salvage Created 5993 | . 1270 . . 251 2822 . 207 516 927 Parts 414 | . 97 . . 35 169 . 21 25 67 Haulers Intercepted 9 | . 2 . . . 6 . . 1 . Recyclers Shooed 4 | . 1 . . . 2 . . 1 . Parts Field Recycled . | . . . . . . . . . . Retrieved Matter . | . . . . . . . . . . Parts Self-Destructed . | . . . . . . . . . . Prevented . | . . . . . . . . . . Kills | -11 -10 -10 -10 -9 -8 -7 -7 -7 -7 ------- Run | Jun Mat Min Exi Min Mat Fac Gar Fac Gar Combat Hostiles Destroyed 140 | . 30 . . 15 51 . 12 8 24 Guns 81 | . 24 . . 5 32 . 4 8 8 AOE 59 | . 6 . . 10 19 . 8 . 16 Classes Destroyed 17 | . 9 . . . 7 . 1 . . Worker 13 | . 1 . . . 10 . . 2 . Builder 10 | . 2 . . 2 6 . . . . Tunneler 1 | . . . . . 1 . . . . Hauler 9 | . 2 . . . 6 . . 1 . Recycler 4 | . 1 . . . 3 . . . . Mechanic 1 | . 1 . . . . . . . . Operator 2 | . 1 . . . 1 . . . . Watcher 8 | . 3 . . . 5 . . . . Swarmer 47 | . 6 . . 12 9 . 8 . 12 Grunt 58 | . 24 . . 3 21 . . 5 5 Brawler 4 | . . . . . 1 . . 1 2 Duelist 4 | . . . . . 4 . . . . Protector 1 | . . . . . 1 . . . . Sentry 17 | . . . . . 8 . . 1 8 Specialist 5 | . . . . . 5 . . . . Hunter 4 | . . . . . 2 . 1 1 . Programmer 3 | . . . . . . . 3 . . Best Kill Streak 12 | . 4 . . 8 8 . 4 3 12 Combat Bots Only 12 | . 4 . . 6 7 . 4 2 12 Max Kills in Single Turn 4 | . 4 . . 4 3 . 3 2 4 Gunslinging 1 | . . . . . . . . 1 . Exploded 4 | . 3 . . 4 3 . 3 . 4 Melee . | . . . . . . . . . . Uniques/NPCs Destroyed . | . . . . . . . . . . Combat | -11 -10 -10 -10 -9 -8 -7 -7 -7 -7 -------- Run | Jun Mat Min Exi Min Mat Fac Gar Fac Gar Damage Taken 6245 | . 761 . . 284 2306 . 269 683 1942 Core 1022 | . 127 . . 103 427 . 31 91 243 Absorbed by Shields 1869 | . . . . . 476 . 99 258 1036 Redirected to Shielding 35 | . . . . . 35 . . . . Regen/Repaired (Parts) 121 | . 32 . . . 89 . . . . Core Remaining (%) 43 | 100 . . . 8 22 . . . . Volleys Fired 493 | . 104 1 . 21 228 . 21 51 67 Largest 3 | . 2 2 . 2 2 . 3 2 2 Hottest 93 | . 40 40 . 40 63 . 74 50 93 Shots Fired 941 | . 204 2 . 34 442 . 44 101 114 Gun 868 | . 201 2 . 26 416 . 34 100 89 Cannon 3 | . . . . . . . . . 3 Launcher 59 | . 3 . . 8 25 . 10 . 13 Special 11 | . . . . . 1 . . 1 9 Kinetic 871 | . 201 2 . 26 416 . 34 100 92 Thermal . | . . . . . . . . . . Explosive 59 | . 3 . . 8 25 . 10 . 13 Electromagnetic . | . . . . . . . . . . Robot Hit Streak 31 | . 20 1 . 6 31 . 14 12 24 Robot Miss Streak 5 | . 5 1 . 1 4 . 5 4 2 Penetration Max 1 | . . . . . . . . . 1 Secondary Targets 9 | . 1 . . . 4 . . 3 1 Max Gunslinging Chain 1 | . 1 . . . 1 . . 1 1 Shots Hit Robots 641 | . 133 1 . 20 314 . 29 64 80 Core Hits 377 | . 69 1 . 27 170 . 32 23 55 Critical Kills 3 | . 1 . . . 1 . . 1 . Critical Parts Destroyed 1 | . . . . . . . . 1 . Critical Strikes 4 | . 1 . . . 1 . . 2 . Destroy 4 | . 1 . . . 1 . . 2 . Melee Attacks 33 | . . . . . . . 9 1 23 Impact . | . . . . . . . . . . Slashing 33 | . . . . . . . 9 1 23 Piercing . | . . . . . . . . . . Sneak Attacks . | . . . . . . . . . . Combat Hostiles . | . . . . . . . . . . Follow-up Attacks . | . . . . . . . . . . Damage Inflicted 13108 | . 1605 9 . 606 6301 . 1034 1022 2531 Guns 8495 | . 1298 9 . 167 4181 . 550 1008 1282 Cannons 44 | . . . . . . . . . 44 Explosions 4555 | . 307 . . 439 2120 . 484 . 1205 Melee . | . . . . . . . . . . Ramming 14 | . . . . . . . . 14 . Kinetic 8539 | . 1298 9 . 167 4181 . 550 1008 1326 Thermal . | . . . . . . . . . . Explosive 4373 | . 307 . . 439 1938 . 484 . 1205 Electromagnetic 182 | . . . . . 182 . . . . Impact . | . . . . . . . . . . Slashing . | . . . . . . . . . . Piercing . | . . . . . . . . . . Highest Corruption 18 | . . . . . 1 . 3 3 18 Average Corruption 3 | . . . . . 1 . 2 3 9 Corruption Purged . | . . . . . . . . . . Corruption Blocked . | . . . . . . . . . . Effects 76 | . . . . . 12 . 6 16 42 Message Errors 22 | . . . . . 2 . 1 6 13 Matter Fused 17 | . . . . . 2 . 1 3 11 Heat Flow Errors 10 | . . . . . 3 . . 4 3 Energy Discharges 12 | . . . . . 2 . 2 2 6 Parts Rejected 1 | . . . . . . . . . 1 Data Loss (minor) 5 | . . . . . 1 . 2 1 1 Misfires 3 | . . . . . 1 . . . 2 Alerts 2 | . . . . . . . . . 2 Misdirections 1 | . . . . . . . . . 1 Weapon Failures 3 | . . . . . 1 . . . 2 Overload Shots . | . . . . . . . . . . Overflow Damage 35 | . . . . . 32 . . . 3 Projectiles . | . . . . . . . . . . Explosions 35 | . . . . . 32 . . . 3 Melee . | . . . . . . . . . . Knockbacks . | . . . . . . . . . . Impact . | . . . . . . . . . . Kinetic . | . . . . . . . . . . Secondary . | . . . . . . . . . . Self-Inflicted Damage 73 | . . . . 34 . . . 7 32 Shots 3 | . . . . 2 . . . . 1 Rammed 1 | . . . . . . . . 1 . Targets Rammed 1 | . . . . . . . . 1 . Kicked . | . . . . . . . . . . Crushed . | . . . . . . . . . . Highest Temperature 381 | . 22 6 . 81 381 . . 275 239 Average Temperature 52 | . 6 4 . 42 79 . . 93 41 Received Heat Transfer 1650 | . 402 . . 132 629 . . 103 384 Siege Activations . | . . . . . . . . . . Robots Corrupted . | . . . . . . . . . . Combat Hostiles . | . . . . . . . . . . Parts Fried 2 | . 2 . . . . . . . . Impact Corruptions . | . . . . . . . . . . Robots Melted . | . . . . . . . . . . Combat Hostiles . | . . . . . . . . . . Parts Melted . | . . . . . . . . . . Heat Transferred . | . . . . . . . . . . Parts Sabotaged . | . . . . . . . . . . Parts Stolen . | . . . . . . . . . . Parts Stripped . | . . . . . . . . . . Power Chain Reactions 1 | . . . . . 1 . . . . Missiles Intercepted . | . . . . . . . . . . Alert | -11 -10 -10 -10 -9 -8 -7 -7 -7 -7 ------- Run | Jun Mat Min Exi Min Mat Fac Gar Fac Gar Peak Influence 1402 | . 408 159 . 466 1402 637 886 573 1089 Initial 637 | . . 159 . . 103 637 445 464 366 Average 520 | . 247 159 . 286 679 637 648 495 696 Maximum Alert Level 4 | . 2 . . 2 4 2 3 2 3 Low Security (%) 19 | 100 31 100 . 16 19 . . . . Level 1 25 | . 63 . . 53 13 . . . 22 Level 2 26 | . 4 . . 29 20 100 62 99 13 Level 3 20 | . . . . . 24 . 37 . 63 Level 4 8 | . . . . . 23 . . . . Level 5 . | . . . . . . . . . . High Security . | . . . . . . . . . . Max Security . | . . . . . . . . . . Sterilizations 1 | . . . . . 1 . . . . Squads Dispatched 29 | . 11 . . . 14 1 . 3 . Investigation 15 | . 11 . . . 4 . . . . Extermination 1 | . . . . . . 1 . . . Reinforcement 11 | . . . . . 8 . . 3 . Assault 2 | . . . . . 2 . . . . Garrison . | . . . . . . . . . . Intercept . | . . . . . . . . . . Searches Triggered . | . . . . . . . . . . Construction Impeded 1 | . . . . . 1 . . . . Haulers Reinforced 2 | . . . . . . . . 2 . Active Scanning Responses . | . . . . . . . . . . Cargo Convoy Interrupts . | . . . . . . . . . . Alert ID Control Effect 1 | . . . . . . . . . 1 Stealth | -11 -10 -10 -10 -9 -8 -7 -7 -7 -7 --------- Run | Jun Mat Min Exi Min Mat Fac Gar Fac Gar Distress Signals 10 | . 3 . . . 6 . . 1 . Communications Jammed . | . . . . . . . . . . Distress Signals . | . . . . . . . . . . Times Spotted 192 | . 40 . . 15 81 . 11 12 33 Peak Tracking Total 8 | . 4 . . 4 5 1 4 4 8 Tactical Retreats 16 | . 2 . . 2 11 . 1 . . Traps | -11 -10 -10 -10 -9 -8 -7 -7 -7 -7 ------- Run | Jun Mat Min Exi Min Mat Fac Gar Fac Gar Traps Triggered 14 | . 3 . . . 3 . 1 . 7 Indirectly . | . . . . . . . . . . Trap Hack Attempts 38 | . 38 . . . . . . . . Triggered . | . . . . . . . . . . Disarmed . | . . . . . . . . . . Reprogrammed 3 | . 3 . . . . . . . . Reused 1 | . 1 . . . . . . . . Traps Extracted . | . . . . . . . . . . Installed . | . . . . . . . . . . Triggered 1 | . 1 . . . . . . . . Machines | -11 -10 -10 -10 -9 -8 -7 -7 -7 -7 ---------- Run | Jun Mat Min Exi Min Mat Fac Gar Fac Gar Machines Disabled 14 | . . . . 1 6 . 4 1 2 Max in Single Turn 2 | . . . . 1 2 . 1 1 1 Garrison Relay 3 | . . . . . . . 2 . 1 Machines Repaired . | . . . . . . . . . . Machines Sabotaged . | . . . . . . . . . . Overloaded Fab Kills . | . . . . . . . . . . Hacking | -11 -10 -10 -10 -9 -8 -7 -7 -7 -7 --------- Run | Jun Mat Min Exi Min Mat Fac Gar Fac Gar Machines Accessed 27 | . 11 . 1 . 5 1 1 5 3 Terminals 19 | . 8 . . . 4 . 1 3 3 Fabricators 1 | . . . . . . . . 1 . Repair Stations 2 | . 1 . . . 1 . . . . Recycling Units 2 | . 2 . . . . . . . . Scanalyzers . | . . . . . . . . . . Garrison Access 2 | . . . . . . 1 . 1 . Total Hacks 59 | . 29 . 1 . 14 1 1 8 5 Successful 29 | . 17 . 1 . 4 1 1 3 2 Failed 30 | . 12 . . . 10 . . 5 3 Catastrophic 7 | . 3 . . . 1 . . 3 . Database Lockouts . | . . . . . . . . . . Manual 37 | . 26 . 1 . 10 . . . . Terminals 48 | . 25 . . . 12 . 1 5 5 Fabricators 1 | . . . . . . . . 1 . Repair Stations 4 | . 2 . . . 2 . . . . Recycling Units 2 | . 2 . . . . . . . . Scanalyzers . | . . . . . . . . . . Garrison Access 3 | . . . . . . 1 . 2 . Terminal Hacks 7 | . 2 . 1 . . . 1 1 2 Robot Analysis 2 | . 2 . . . . . . . . Prototype ID Bank 1 | . . . . . . . . 1 . Open Door 1 | . . . . . . . . . 1 Garrison Registry 1 | . . . . . . . 1 . . Security Stations 1 | . . . . . . . . . 1 EX-Prototype ID Bank 1 | . . . 1 . . . . . . Fabricator Hacks . | . . . . . . . . . . Repair Station Hacks 4 | . 2 . . . 2 . . . . Scan Component 2 | . 1 . . . 1 . . . . Repair 2 | . 1 . . . 1 . . . . Recycling Unit Hacks . | . . . . . . . . . . Scanalyzer . | . . . . . . . . . . Garrison Access Hacks 3 | . . . . . . 1 . 2 . Unlock Access 2 | . . . . . . 1 . 1 . Coupler Status 1 | . . . . . . . . 1 . Unauthorized Hacks 15 | . 13 . . . 2 . . . . Terminals 13 | . 11 . . . 2 . . . . Botnet 1 | . 1 . . . . . . . . Disrupt 8 | . 6 . . . 2 . . . . Search 4 | . 4 . . . . . . . . Fabricators . | . . . . . . . . . . Repair Stations . | . . . . . . . . . . Recycling Units 2 | . 2 . . . . . . . . Tunnel 2 | . 2 . . . . . . . . Scanalyzers . | . . . . . . . . . . Garrison Access . | . . . . . . . . . . Data Cores Recovered . | . . . . . . . . . . Used . | . . . . . . . . . . Hacking Detections 16 | . 6 . . . 4 . 1 4 1 Full Trace Events 6 | . 3 . . . 2 . . . 1 Feedback Events 1 | . . . . . 1 . . . . Corruption 1 | . . . . . 1 . . . . Feedback Blocked . | . . . . . . . . . . Robot Schematics Acquired . | . . . . . . . . . . Robots Built . | . . . . . . . . . . Authchips . | . . . . . . . . . . Time . | . . . . . . . . . . Total Robot Build Rating . | . . . . . . . . . . Part Schematics Acquired . | . . . . . . . . . . Parts Built . | . . . . . . . . . . Authchips . | . . . . . . . . . . Time . | . . . . . . . . . . Total Part Build Rating . | . . . . . . . . . . Parts Repaired 2 | . 1 . . . 1 . . . . Time 52 | . 26 . . . 26 . . . . Parts Recycled . | . . . . . . . . . . Recycled Matter . | . . . . . . . . . . Retrieved Matter . | . . . . . . . . . . Retrieved Components . | . . . . . . . . . . Parts Scanalyzed . | . . . . . . . . . . Part Schematics Acquired . | . . . . . . . . . . Parts Damaged . | . . . . . . . . . . Bothacking | -11 -10 -10 -10 -9 -8 -7 -7 -7 -7 ------------ Run | Jun Mat Min Exi Min Mat Fac Gar Fac Gar Used RIF Installer 2 | . . . . . . . 1 . 1 Alert ID Control 1 | . . . . . . . . . 1 Robots Hacked 6 | . . . . . . . . 1 5 Non-combat . | . . . . . . . . . . Combat 6 | . . . . . . . . 1 5 Robot Hacks Applied 6 | . . . . . . . . 1 5 streamctrl_high 5 | . . . . . . . . . 5 formatsys_high 1 | . . . . . . . . 1 . Relay Couplers Released 13 | . . . . . . . 10 . 3 Machine Destruction 13 | . . . . . . . 10 . 3 Attached 4 | . . . . . . . . 1 3 Fabnet Peak Effective % . | . . . . . . . . . . Robots Rewired . | . . . . . . . . . . Allies Hacked . | . . . . . . . . . . Hacks Repelled . | . . . . . . . . . . Allies | -11 -10 -10 -10 -9 -8 -7 -7 -7 -7 -------- Run | Jun Mat Min Exi Min Mat Fac Gar Fac Gar Total Allies 9 | . . . . . 1 . . 1 7 Largest Group 2 | . . . . . 1 . . 1 2 Highest-Rated Group 90 | . . . . . 90 . . 32 64 Highest-Rated Ally 90 | . . . . . 90 . . 32 32 Total Orders . | . . . . . . . . . . Ally Attacks 29 | . . . . . 8 . . 5 16 Total Damage 1000 | . . . . . 456 . . 167 377 Kills 6 | . . . . . 3 . . 1 2 Allies Corrupted . | . . . . . . . . . . Allies Melted . | . . . . . . . . . . Field Lobotomies 1 | . . . . . 1 . . . . Intel | -11 -10 -10 -10 -9 -8 -7 -7 -7 -7 ------- Run | Jun Mat Min Exi Min Mat Fac Gar Fac Gar Robot Analysis Total 2 | . 2 . . . . . . . . Derelict Logs Recovered 1 | . . 1 . . . . . . . Drone Launches . | . . . . . . . . . . Drone Recoveries . | . . . . . . . . . . Exploration | -11 -10 -10 -10 -9 -8 -7 -7 -7 -7 ------------- Run | Jun Mat Min Exi Min Mat Fac Gar Fac Gar Turns Passed 9249 | 62 1860 306 250 752 3271 265 433 711 1339 Spaces Moved 5483 | 58 1059 280 235 502 1675 257 266 453 698 Core 1 | 1 . . . . . . . . . Treads . | . . . . . . . . . . Legs . | . . . . . . . . . . Wheels 5482 | 57 1059 280 235 502 1675 257 266 453 698 Hover . | . . . . . . . . . . Flight . | . . . . . . . . . . Fastest Speed 50 | 50 90 105 105 105 90 100 100 100 100 Average Speed 106 | 89 103 105 105 105 111 100 100 105 111 Slowest Speed 140 | 100 140 105 105 105 130 100 100 115 130 Overloaded Moves . | . . . . . . . . . . Propulsion Burnouts . | . . . . . . . . . . Robots Hopped . | . . . . . . . . . . Cave-ins Triggered 2 | . . . . . . . . . 2 Exploration Rate (%) 51 | 3 93 58 61 86 96 6 41 12 57 Regions Visited 9 Branch Regions 3 Pre-discovered Areas 3 | . 2 1 . . . . . . . Known Exits Taken 2 | . . . . . . 1 . 1 . Unknown Exits Taken 6 | 1 1 1 1 1 1 . . . . Scrap Searched 2 | . . 1 . 1 . . . . . Spaces Dug 117 | . 15 . . 49 9 . 1 1 42 Terrain Destroyed 284 | . 15 . . 77 132 . 13 1 46 Melee 10 | . . . . . . . 1 1 8 Projectile 1 | . . . . . 1 . . . . AOE 273 | . 15 . . 77 131 . 12 . 38 Terrain Rammed . | . . . . . . . . . . Walls Destroyed . | . . . . . . . . . . Machines Disabled . | . . . . . . . . . . Actions | -11 -10 -10 -10 -9 -8 -7 -7 -7 -7 --------- Run | Jun Mat Min Exi Min Mat Fac Gar Fac Gar Total 7962 | 64 1644 290 239 696 2655 264 378 600 1132 Wait 1595 | . 410 5 . 168 637 . 52 74 249 Move 5473 | 57 1058 279 234 501 1674 256 264 452 698 Hop . | . . . . . . . . . . Pick Up 77 | 1 15 3 3 3 23 2 7 7 13 Fast Attach 39 | 6 6 1 . 1 15 2 . 1 7 Attach 24 | . 4 . . . 9 1 1 3 6 Detach 2 | . . . . . 1 . . . 1 Swap 75 | . 8 . . 2 34 1 12 3 15 Drop 64 | . 1 1 2 . 34 2 4 7 13 Fire 493 | . 104 1 . 21 228 . 21 51 67 Melee 33 | . . . . . . . 9 1 23 Ram 1 | . . . . . . . . 1 . Kick . | . . . . . . . . . . Crush . | . . . . . . . . . . Escape Stasis 48 | . . . . . . . 8 . 40 Rewire . | . . . . . . . . . . Trap 38 | . 38 . . . . . . . . Miscellaneous . | . . . . . . . . . . Route ------- -11/Junkyard -10/Materials (discovered 4 exits: [*Mat x3] / [*Min]) -10/Mines (discovered 2 exits: [*Mat] / *Exi) -10/Exiles -9/Mines -8/Materials (discovered 3 exits: *Fac x3) -7/Factory -7/Garrison (discovered 3 exits: *Fac x3) -7/Factory -7/Garrison (discovered 2 exits: [*Fac x2]) History --------- Turn | Location | Event 22 | -11/Junkyard | Discovered new exit (range 16) 63 | -11/Junkyard | Entered Materials 305 | -10/Materials | Build established: Mutant 438 | -10/Materials | Discovered new exit (range 4) 713 | -10/Materials | Discovered new exit (range 5) 785 | -10/Materials | Discovered new exit (range 8) 1175 | -10/Materials | Discovered new exit (range 11) 1273 | -10/Materials | Core integrity fell below 50% 1330 | -10/Materials | Repaired Lgt. Assault Rifle 1379 | -10/Materials | Build established: Scavenger-Mutant 1923 | -10/Materials | Entered Mines 1984 | -10/Mines | Received a Rocket Launcher from a helpful Derelict 2027 | -10/Mines | Assembled infested the area 2082 | -10/Mines | A weapon hastily lodged in a ceiling crevice suddenly fell to the ground 2095 | -10/Mines | Learned location of Zion (-7) 2131 | -10/Mines | Discovered new exit (range 5) 2225 | -10/Mines | Discovered new exit (range 5) 2229 | -10/Mines | Entered Exiles 2255 | -10/Exiles | Met 8R-AWN 2270 | -10/Exiles | Met EX-HEX 2305 | -10/Exiles | Met EX-BIN 2317 | -10/Exiles | Aligned with FarCom system 2318 | -10/Exiles | Given EX-Vault access code 2343 | -10/Exiles | Opened EX-Vault 2350 | -10/Exiles | Found Field Lobotomy Kit 2372 | -10/Exiles | Warned to stay clear of 0b10 Research branches 2402 | -10/Exiles | Met EX-DEC 2464 | -10/Exiles | Discovered new exit (range 14) 2479 | -10/Exiles | Left Exiles lab with Field Lobotomy Kit 2479 | -10/Exiles | Entered Mines 2743 | -9/Mines | Core integrity fell below 20% 3129 | -9/Mines | Discovered new exit (range 9) 3231 | -9/Mines | Entered Materials 3231 | -8/Materials | Evolved 4 slots: Propulsion x2, Utility x2 4278 | -8/Materials | Discovered new exit (range 12) 4523 | -8/Materials | Discovered new exit (range 16) 4538 | -8/Materials | Build established: Mutant 4570 | -8/Materials | Repaired Lgt. Armor Plating 4831 | -8/Materials | First assault squad dispatched 4912 | -8/Materials | Destroyed 7 combat bots 6090 | -8/Materials | Core integrity fell below 50% 6354 | -8/Materials | Assimilated H-61 Shepherd with FLK Orb 6442 | -8/Materials | Sterilization system engaged 6442 | -8/Materials | Non-combat units ordered to evacuate 6453 | -8/Materials | Discovered new exit (range 4) 6502 | -8/Materials | Entered Factory 6502 | -7/Factory | Evolved 2 slots: Propulsion x1, Weapon x1 6766 | -7/Factory | Identified exit to Garrison 6767 | -7/Factory | Entered Garrison 6793 | -7/Garrison | Build established: Tank 6933 | -7/Garrison | Discovered new exit (range 29) 6933 | -7/Garrison | Discovered new exit (range 57) 6933 | -7/Garrison | Discovered new exit (range 66) 6966 | -7/Garrison | Garrison Relay disabled 6989 | -7/Garrison | Triggered checkpoint 7059 | -7/Garrison | Triggered checkpoint 7124 | -7/Garrison | Build established: Mutant 7128 | -7/Garrison | Triggered checkpoint 7141 | -7/Garrison | Installed Relay Interface Framework 7165 | -7/Garrison | Garrison Relay disabled 7200 | -7/Garrison | Entered Factory 7910 | -7/Factory | Identified exit to Garrison 7911 | -7/Factory | Entered Garrison 8168 | -7/Garrison | Crushed by falling debris 8168 | -7/Garrison | System corruption reached 10% 8171 | -7/Garrison | Triggered checkpoint 8233 | -7/Garrison | Learned Factory security intel 8280 | -7/Garrison | Triggered checkpoint 8314 | -7/Garrison | Rescued a captive Derelict 8315 | -7/Garrison | Rescued a captive Derelict 8376 | -7/Garrison | Triggered checkpoint 8388 | -7/Garrison | Triggered checkpoint 8403 | -7/Garrison | Triggered checkpoint 8429 | -7/Garrison | Destroyed 12 combat bots 8436 | -7/Garrison | Discovered new exit (range 11) 8498 | -7/Garrison | Expanded RIF knowledge: Alert ID Control 8602 | -7/Garrison | Triggered checkpoint 8652 | -7/Garrison | Garrison Relay disabled 8887 | -7/Garrison | Discovered new exit (range 9) 8994 | -7/Garrison | Build established: Bothacker-Mutant 9249 | -7/Garrison | Crushed by falling debris 9249 | -7/Garrison | Core integrity fell below 50% 9250 | -7/Garrison | Self-destructed Last Messages --------------- 09214_ Com. Wheel destroyed. 09216_ QMMK8&<04 09239_ The unstable cave ceiling collapses. 09240_ Dropped Hcp. Matter Pod. 09241_ Extracted 200 matter. 09241_ Relay Coupler [Grunt] destroyed. 09241_ System corrupted by crushing effect (+3). 09241_ Knocked back. 09241_ Slug penetrates B-48 Gladiator. 09247_ SZ=X|CYWCGKZA7#EH:N